bitfinex/quotes_SOLUSD_20250601
["timestamp","ask_amount","ask_price","bid_price","bid_amount"]
[1748748789415,21.37353722,154.02,153.97,21.37547728]
[1748748789576,14.88083983,154.02,153.97,21.37547728]
[1748748789971,14.88083983,154.0,153.95,51.42083983]
[1748748790176,14.88083983,154.0,153.95,25.42083983]
[1748748791079,14.88083983,154.0,153.95,31.91636052]
[1748748792307,14.88083983,154.0,153.96,14.88083983]
[1748748792604,21.37397769,154.01,153.96,14.88083983]
[1748748793080,6.0666,154.0,153.96,14.88083983]
[1748748793802,1.6085,153.99,153.96,14.88083983]
[1748748793995,1.6085,153.99,153.96,21.37593979]
[1748748794904,1.6085,153.99,153.97,14.88083983]
[1748748795683,1.6085,153.99,153.98,6.49434991]
[1748748798096,1.6085,153.99,153.98,14.88083983]
[1748748798704,1.6085,153.99,153.97,14.88083983]
[1748748799303,1.6085,153.99,153.97,21.37526709]
[1748748799484,1.6085,153.99,153.98,14.88083983]
[1748748800897,1.6085,153.99,153.98,21.37518974]
[1748748802402,1.5402,154.03,153.98,21.37518974]
[1748748802606,1.5402,154.03,154.01,14.88083983]
[1748748803121,1.5402,154.03,154.0,14.88083983]
[1748748806097,1.5402,154.03,154.0,21.37411319]
[1748748806288,1.5402,154.03,154.0,14.88083983]
[1748748806790,40.88083983,154.08,153.99,6.49376282]
[1748748806791,6.48978033,154.09,153.99,48.72858326]
[1748748807001,1.6652,154.03,154.01,14.88083983]
[1748748807895,1.6652,154.03,154.02,14.88083983]
[1748748808108,1.6652,154.03,154.02,21.37350312]
[1748748808311,14.88083983,154.07,154.02,21.37350312]
[1748748809823,6.49040258,154.08,154.03,14.88083983]
[1748748810115,14.88083983,154.08,154.03,14.88083983]
[1748748812010,32.48972371,154.09,154.04,6.4918203]
[1748748812193,14.88083983,154.08,154.04,21.37266013]
[1748748812400,14.88083983,154.08,154.03,21.37292581]
[1748748814915,14.88083983,154.07,154.03,6.49208598]
[1748748815097,14.88083983,154.06,154.02,6.49254686]
[1748748815528,14.88083983,154.07,154.02,21.37338669]
[1748748816492,14.88083983,154.07,154.02,14.88083983]
[1748748818523,6.49017448,154.08,154.03,21.3730816]
[1748748818697,14.88083983,154.08,154.03,21.3730816]
[1748748819592,40.88083983,154.09,154.04,14.88083983]
[1748748820210,40.88083983,154.09,154.05,6.49139889]
[1748748820617,14.88083983,154.09,154.05,6.49139889]
[1748748821188,43.00891941,154.11,154.05,21.37223872]
[1748748821395,14.88083983,154.1,154.05,21.37223872]
[1748748821802,1.6347,154.08,154.05,21.37223872]
[1748748823008,1.6347,154.08,154.04,14.88083983]
[1748748823801,1.6347,154.08,154.05,14.88083983]
[1748748824317,1.6347,154.08,154.06,14.88083983]
[1748748825123,1.6347,154.08,154.07,6.49055624]
[1748748825310,1.6347,154.08,154.07,21.37139607]
[1748748825705,1.5185,154.12,154.07,21.37139607]
[1748748825898,1.5185,154.12,154.08,14.88083983]
[1748748826922,16.39933983,154.12,154.08,14.88083983]
[1748748828227,22.88782164,154.12,154.08,14.88083983]
[1748748828734,16.39933983,154.12,154.08,14.88083983]
[1748748829938,6.103,154.11,154.07,21.37121327]
[1748748830103,6.103,154.11,154.05,10.52]
[1748748830104,20.98383983,154.11,154.05,10.52]
[1748748830407,20.98383983,154.11,154.07,14.88083983]
[1748748830613,6.103,154.11,154.08,14.88083983]
[1748748831829,6.103,154.11,154.08,21.37085431]
[1748748832207,6.103,154.11,154.08,14.88083983]
[1748748832407,1.5185,154.12,154.08,6.48986748]
[1748748832602,1.5185,154.12,154.09,14.88083983]
[1748748833124,1.5185,154.12,154.1,14.88083983]
[1748748833509,1.5185,154.12,154.11,14.88083983]
[1748748833825,1.5185,154.12,154.1,14.88083983]
[1748748834017,1.5185,154.12,154.1,21.36990123]
[1748748835317,1.5185,154.12,154.1,14.88083983]
[1748748836211,1.5185,154.12,154.08,18.933972]
[1748748836418,1.5185,154.12,154.1,14.88083983]
[1748748838618,1.5185,154.12,154.11,14.88083983]
[1748748840322,8.0069594,154.12,154.1,14.88083983]
[1748748841258,8.0069594,154.12,154.01,10.5]
[1748748841259,14.88083983,154.11,154.01,10.5]
[1748748841410,8.0069594,154.12,154.03,14.88083983]
[1748748841411,14.88083983,154.07,154.03,14.88083983]
[1748748842140,14.88083983,154.08,154.03,14.88083983]
[1748748842335,6.49055624,154.07,154.04,14.88083983]
[1748748843827,6.49013499,154.08,154.04,14.88083983]
[1748748844414,21.37097482,154.08,154.04,14.88083983]
[1748748846518,6.49013499,154.08,154.04,14.88083983]
[1748748846721,21.37097482,154.08,154.04,14.88083983]
[1748748847047,21.37097482,154.08,154.03,14.88083983]
[1748748847630,14.88083983,154.07,154.01,36.5]
[1748748847828,14.88083983,154.07,154.03,14.88083983]
[1748748848332,14.88083983,154.07,154.01,42.99296977]
[1748748848540,14.88083983,154.07,154.03,14.88083983]
[1748748849024,21.37170746,154.07,154.03,14.88083983]
[1748748849221,14.88083983,154.06,154.02,14.88083983]
[1748748849623,21.37170746,154.07,154.02,14.88083983]
[1748748850429,6.49086763,154.07,154.02,14.88083983]
[1748748850726,21.37170746,154.07,154.02,14.88083983]
[1748748852630,6.49139889,154.05,154.01,25.38083983]
[1748748853224,6.49139889,154.05,154.02,14.88083983]
[1748748854947,21.37223872,154.05,154.01,25.38083983]
[1748748856637,22.71563302,154.08,154.01,25.38083983]
[1748748856822,14.88083983,154.05,154.01,25.38083983]
[1748748859551,21.37230194,154.05,154.01,25.38083983]
[1748748860754,21.37230194,154.05,154.01,10.5]
[1748748861140,14.88083983,154.06,154.01,25.38083983]
[1748748861727,6.49013499,154.08,154.02,14.88083983]
[1748748862038,14.88083983,154.07,154.02,14.88083983]
[1748748862853,21.3715699,154.07,154.02,14.88083983]
[1748748864034,21.3715699,154.07,154.02,21.37347732]
[1748748864237,21.3715699,154.07,154.02,14.88083983]
[1748748864935,6.49013499,154.08,154.02,14.88083983]
[1748748865130,14.88083983,154.07,154.02,21.37340095]
[1748748866640,14.88083983,154.08,154.03,14.88083983]
[1748748869165,14.88083983,154.08,154.03,21.37286344]
[1748748869959,14.88083983,154.1,154.05,14.88083983]
[1748748870546,14.88083983,154.11,154.06,14.88083983]
[1748748870860,14.88083983,154.12,154.07,14.88083983]
[1748748871458,14.88083983,154.12,154.07,21.37119401]
[1748748871961,14.88083983,154.1,154.06,31.87172874]
[1748748874049,8.03999093,154.12,154.06,31.87172874]
[1748748874240,14.88083983,154.11,154.06,31.87172874]
[1748748875266,21.36986599,154.11,154.06,31.87172874]
[1748748876165,14.88083983,154.11,154.06,31.87172874]
[1748748876969,8.04009792,154.12,154.06,31.87172874]
[1748748877154,14.88083983,154.11,154.06,31.87172874]
[1748748878940,8.04009792,154.12,154.06,31.87172874]
[1748748879165,14.88083983,154.11,154.06,31.87172874]
[1748748880072,16.43233983,154.12,154.07,14.88083983]
[1748748881064,16.43233983,154.12,154.08,6.49013499]
[1748748882150,1.5515,154.12,154.08,21.37097482]
[1748748882356,1.5515,154.12,154.09,14.88083983]
[1748748884564,1.5515,154.12,154.09,21.37025014]
[1748748886877,1.5515,154.12,154.08,21.37080394]
[1748748887575,6.48763047,154.14,154.08,21.37080394]
[1748748887774,14.88083983,154.12,154.08,6.48996411]
[1748748888071,6.48763047,154.14,154.06,121.47147042]
[1748748888072,14.88083983,154.11,154.06,121.47147042]
[1748748889056,14.88083983,154.1,154.06,106.59063059]
[1748748889275,14.88083983,154.1,154.06,121.47147042]
[1748748890357,14.88083983,154.1,154.06,106.59063059]
[1748748890557,14.88083983,154.09,154.06,10.5]
[1748748891475,1.5258,154.1,154.06,31.87175507]
[1748748891665,16.40663983,154.1,154.06,31.87175507]
[1748748894276,1.5258,154.1,154.06,31.87175507]
[1748748895178,1.5258,154.1,154.07,14.88083983]
[1748748895563,1.5258,154.1,154.07,6.49043576]
[1748748897785,11.01169411,154.1,154.06,16.99082437]
[1748748898166,11.01169411,154.1,154.06,6.49082437]
[1748748899076,11.01169411,154.1,154.06,9.48589411]
[1748748900190,1.5258,154.1,154.06,9.48589411]
[1748748900699,9.48589411,154.13,154.09,9.48589411]
[1748748901071,9.48589411,154.13,154.09,6.48965099]
[1748748904086,9.48589411,154.12,154.09,6.48965099]
[1748748904385,9.48589411,154.11,154.06,6.49097754]
[1748748904734,9.48589411,154.11,154.06,15.97687165]
[1748748905085,9.48589411,154.1,154.06,6.49097754]
[1748748906691,14.82308474,154.1,154.06,21.31406228]
[1748748906867,14.82308474,154.1,154.06,6.49097754]
[1748748907371,14.82308474,154.1,154.06,21.31406228]
[1748748911073,14.82308474,154.11,154.06,21.31406228]
[1748748911279,14.82308474,154.11,154.07,14.82308474]
[1748748911482,14.82308474,154.12,154.07,14.82308474]
[1748748911786,26.55962103,154.14,154.09,14.82308474]
[1748748913290,26.55962103,154.14,154.1,6.48929266]
[1748748913682,22.88748474,154.14,154.1,6.48929266]
[1748748917594,22.88748474,154.14,154.1,21.3123774]
[1748748918702,22.88748474,154.14,154.1,6.48929266]
[1748748919077,14.82308474,154.11,154.08,10.5]
[1748748919289,14.82308474,154.09,154.06,6.49082682]
[1748748919593,14.82308474,154.09,154.05,21.31431121]
[1748748920974,21.31247181,154.1,154.06,14.82308474]
[1748748922701,21.31247181,154.1,154.05,21.31431121]
[1748748924410,14.82308474,154.1,154.05,21.31431121]
[1748748926187,6.48901907,154.11,154.05,21.31431121]
[1748748926497,14.82308474,154.1,154.05,21.31431121]
[1748748926707,9.48734663,154.1,154.05,15.9785731]
[1748748929096,9.48734663,154.1,154.06,15.97817958]
[1748748931525,9.48734663,154.1,154.06,6.49083295]
[1748748933120,15.9767225,154.1,154.05,15.97870016]
[1748748933328,9.48734663,154.09,154.05,15.97870016]
[1748748934144,9.48734663,154.06,154.04,10.5]
[1748748935023,15.97802951,154.07,154.04,10.5]
[1748748935727,9.48734663,154.06,154.04,10.5]
[1748748935903,9.48734663,154.05,154.04,10.5]
[1748748936104,9.48734663,154.05,154.01,15.98036724]
[1748748936628,1.5133,154.09,154.01,21.32624672]
[1748748936821,14.83322611,154.05,154.01,21.32624672]
[1748748939929,6.49013499,154.08,154.01,21.32624672]
[1748748940131,14.83322611,154.06,154.01,21.32624672]
[1748748941714,14.83322611,154.06,154.02,14.83322611]
[1748748942615,6.49013499,154.08,154.02,14.83322611]
[1748748942822,14.83322611,154.07,154.03,6.49224177]
[1748748943515,8.00310401,154.09,154.03,21.32546788]
[1748748943725,22.83633012,154.09,154.04,14.83322611]
[1748748944341,14.83322611,154.08,154.03,21.32546788]
[1748748944524,8.00310401,154.09,154.03,21.32546788]
[1748748944838,14.83322611,154.08,154.03,21.32546788]
[1748748945538,14.83322611,154.07,154.03,21.32546788]
[1748748945734,14.83322611,154.07,154.03,10.5]
[1748748946841,14.83322611,154.07,154.03,16.99212995]
[1748748948021,14.83322611,154.07,154.03,31.82535606]
[1748748948327,14.83322611,154.08,154.03,31.82535606]
[1748748956858,9.48948939,154.08,154.03,26.48161934]
[1748748959446,9.48948939,154.07,154.03,10.5]
[1748748960142,9.48948939,154.06,154.03,10.5]
[1748748962549,11.03498939,154.07,154.03,16.99210994]
[1748748965030,1.5455,154.07,154.03,26.48159933]
[1748748969778,17.52558366,154.07,154.03,10.5]
[1748748970342,9.48948939,154.05,154.03,10.5]
[1748748970548,9.48948939,154.05,154.0,15.98272346]
[1748748971439,9.48948939,154.06,154.01,9.48948939]
[1748748973045,9.48948939,154.06,154.02,9.48948939]
[1748748973838,1.5455,154.07,154.04,9.48948939]
[1748748975275,1.5455,154.07,154.03,26.46149541]
[1748748977393,1.5455,154.07,154.04,9.48948939]
[1748748978093,1.5455,154.07,154.04,15.98123918]
[1748748978996,1.5455,154.07,154.04,6.49174979]
[1748748979291,11.03498939,154.07,154.03,26.46165083]
[1748748979822,9.48948939,154.06,154.03,10.48]
[1748748979955,9.48948939,154.05,154.03,10.48]
[1748748980161,9.48948939,154.05,154.01,15.98252086]
[1748748980351,15.98051391,154.06,154.01,15.98252086]
[1748748980874,9.48948939,154.06,154.01,15.98252086]
[1748748981070,9.48948939,154.06,154.02,9.48948939]
[1748748983292,1.5455,154.07,154.03,15.98173116]
[1748748983581,26.0,154.1,154.03,15.98173116]
[1748748983582,9.48948939,154.08,154.03,15.98173116]
[1748748984362,9.48948939,154.07,154.03,6.49224177]
[1748748985854,9.48948939,154.07,154.02,15.9820211]
[1748748987163,13.16790995,154.08,154.03,9.48948939]
[1748748987897,19.65805922,154.08,154.03,15.98158827]
[1748748989194,15.97963866,154.08,154.03,15.98158827]
[1748748991586,9.48948939,154.08,154.03,15.98158827]
[1748748992960,15.97968204,154.08,154.03,15.98158827]
[1748748994382,9.48948939,154.07,154.03,15.98158827]
[1748748994773,9.48948939,154.07,154.03,6.49209888]
[1748748996366,9.48948939,154.06,154.02,16.97253147]
[1748748996684,6.49058678,154.07,154.02,16.97253147]
[1748748996902,9.48948939,154.07,154.02,26.46202086]
[1748749005583,9.48948939,154.09,154.04,9.48948939]
[1748749007204,9.48948939,154.09,154.04,15.98096339]
[1748749007585,9.48948939,154.08,154.04,15.98096339]
[1748749009691,9.48948939,154.08,154.04,9.48948939]
[1748749009906,9.48948939,154.08,154.03,15.98155998]
[1748749010500,8.48948939,154.08,154.03,15.98155998]
[1748749013605,6.48974534,154.09,154.03,15.98155998]
[1748749013813,9.48948939,154.09,154.04,9.48948939]
[1748749014999,9.48948939,154.09,154.05,6.49139889]
[1748749018198,9.48948939,154.09,154.05,9.48948939]
[1748749019221,32.48945136,154.1,154.05,9.48948939]
[1748749019432,9.48948939,154.09,154.05,9.48948939]
[1748749021202,15.9792279,154.09,154.04,15.98105384]
[1748749021604,9.48948939,154.08,154.04,15.98105384]
[1748749021891,9.48948939,154.08,154.04,6.49156445]
[1748749022093,9.48948939,154.08,154.04,15.98105384]
[1748749024315,15.9792279,154.09,154.04,15.98105384]
[1748749025218,15.9792279,154.09,154.05,9.48948939]
[1748749025426,9.48948939,154.09,154.05,9.48948939]
[1748749027624,9.48948939,154.09,154.05,15.98084942]
[1748749028327,15.97928475,154.09,154.04,15.9811293]
[1748749032821,6.48979536,154.09,154.04,15.9811293]
[1748749033026,15.97928475,154.09,154.04,15.9811293]
[1748749033435,6.48979536,154.09,154.04,15.9811293]
[1748749033655,6.48760866,154.14,154.08,9.48948939]
[1748749033950,6.48760866,154.14,154.09,9.48948939]
[1748749033951,15.97709805,154.14,154.09,9.48948939]
[1748749034135,9.48948939,154.13,154.09,9.48948939]
[1748749035419,9.48948939,154.13,154.09,15.97916541]
[1748749037245,9.48948939,154.14,154.09,15.97916541]
[1748749038130,8.13334447,154.15,154.09,15.97916541]
[1748749038339,9.48948939,154.14,154.09,15.97916541]
[1748749038853,8.13334447,154.15,154.09,15.97916541]
[1748749039031,9.48948939,154.14,154.09,15.97916541]
[1748749039880,9.48948939,154.13,154.09,15.97916541]
[1748749044255,44.60223243,154.18,154.12,47.44744695]
[1748749044256,4.60223243,154.18,154.12,47.44744695]
[1748749044465,4.60223243,154.18,154.13,10.46]
[1748749044643,4.60223243,154.18,154.17,9.48948939]
[1748749045248,4.60223243,154.18,154.17,15.97583563]
[1748749045669,9.48948939,154.22,154.17,15.97583563]
[1748749046357,9.48948939,154.22,154.17,6.48634624]
[1748749046538,9.48948939,154.22,154.17,15.97583563]
[1748749050668,9.48948939,154.21,154.17,15.97583563]
[1748749052668,9.48948939,154.18,154.14,15.97709805]
[1748749053252,9.48948939,154.17,154.14,6.48760866]
[1748749054461,9.48948939,154.17,154.13,6.48802958]
[1748749054665,14.80996808,154.17,154.13,21.29799766]
[1748749055375,14.80996808,154.17,154.13,6.48802958]
[1748749055577,14.80996808,154.16,154.13,6.48802958]
[1748749058881,14.80996808,154.17,154.13,6.48802958]
[1748749066399,14.80996808,154.17,154.13,21.29799766]
[1748749067006,26.0,154.23,154.14,14.80996808]
[1748749067178,26.0,154.23,154.16,14.80996808]
[1748749067179,14.80996808,154.21,154.16,14.80996808]
[1748749068264,14.80996808,154.21,154.17,6.48634624]
[1748749069284,14.80996808,154.2,154.17,6.48634624]
[1748749073793,14.80996808,154.2,154.15,14.80996808]
[1748749074780,9.47492731,154.2,154.15,9.47492731]
[1748749074964,9.47492731,154.2,154.16,6.48676699]
[1748749075363,16.92424376,154.22,154.16,6.48676699]
[1748749075581,9.47492731,154.2,154.16,6.48676699]
[1748749076885,9.47492731,154.19,154.16,6.48676699]
[1748749081696,9.47492731,154.21,154.16,15.9616943]
[1748749082370,26.0,154.23,154.16,15.9616943]
[1748749082575,9.47492731,154.21,154.17,9.47492731]
[1748749082891,9.47492731,154.21,154.18,6.48592554]
[1748749086591,9.47492731,154.21,154.16,9.47492731]
[1748749087800,9.47492731,154.21,154.17,6.48634624]
[1748749088793,9.47492731,154.19,154.16,6.48659354]
[1748749090600,9.47492731,154.18,154.15,6.48710342]
[1748749092580,9.47492731,154.19,154.15,6.48710342]
[1748749092992,9.47492731,154.19,154.15,15.96203073]
[1748749094287,11.05702731,154.2,154.15,15.96203073]
[1748749094486,1.5821,154.2,154.16,9.47492731]
[1748749094804,1.5821,154.2,154.17,9.47492731]
[1748749094998,0.5821,154.2,154.17,9.47492731]
[1748749095397,0.5821,154.2,154.16,9.47492731]
[1748749096793,0.5821,154.2,154.17,6.48634624]
[1748749097608,19.91492731,154.24,154.19,9.47492731]
[1748749097797,19.91492731,154.24,154.2,9.47492731]
[1748749098187,9.47492731,154.25,154.2,9.47492731]
[1748749098718,9.47492731,154.25,154.21,6.48466377]
[1748749099889,9.47492731,154.24,154.21,6.48466377]
[1748749100612,7.7152,154.26,154.21,6.48466377]
[1748749100802,14.79629043,154.24,154.21,6.48466377]
[1748749101002,7.7152,154.26,154.21,6.48466377]
[1748749101214,14.79629043,154.24,154.21,6.48466377]
[1748749102698,14.79629043,154.25,154.21,21.2809542]
[1748749104124,14.79629043,154.25,154.21,6.48466377]
[1748749104701,1.5821,154.26,154.21,6.48466377]
[1748749104928,14.79629043,154.25,154.21,6.48466377]
[1748749109018,16.43329043,154.25,154.21,6.48466377]
[1748749111229,1.637,154.25,154.21,6.48466377]
[1748749111417,16.43329043,154.25,154.21,6.48466377]
[1748749111920,3.6849732,154.28,154.24,14.79629043]
[1748749112122,3.6849732,154.28,154.26,14.79629043]
[1748749112427,3.6849732,154.28,154.27,14.79629043]
[1748749113307,1.6372,154.3,154.27,14.79629043]
[1748749113509,1.6372,154.3,154.28,21.2778175]
[1748749119017,1.6372,154.3,154.28,6.48152707]
[1748749119421,1.6372,154.3,154.29,0.57218615]
[1748749124524,14.79629043,154.32,154.29,0.57218615]
[1748749126636,9.46034782,154.32,154.29,0.57218615]
[1748749129034,15.94044374,154.32,154.29,0.57218615]
[1748749131444,6.47920176,154.34,154.29,0.57218615]
[1748749131740,9.46034782,154.32,154.29,0.57218615]
[1748749133217,15.94042813,154.32,154.29,0.57218615]
[1748749133459,9.46034782,154.3,154.29,0.57218615]
[1748749133960,68.25431982,154.3,154.29,0.57218615]
[1748749135324,74.73520121,154.3,154.29,0.57218615]
[1748749136420,15.94122921,154.3,154.29,0.57218615]
[1748749136636,21.26791407,154.3,154.29,0.57218615]
[1748749140248,14.78703268,154.3,154.29,0.57218615]
[1748749140961,21.26791407,154.3,154.29,0.57218615]
[1748749145456,66.20188607,154.3,154.29,0.57218615]
[1748749145647,14.78703268,154.23,154.18,21.27295822]
[1748749145849,14.78703268,154.23,154.18,47.27295822]
[1748749146058,14.78703268,154.24,154.19,14.78703268]
[1748749146659,6.48292735,154.26,154.2,6.4850843]
[1748749146859,14.78703268,154.24,154.2,21.27211698]
[1748749147559,14.78703268,154.26,154.21,14.78703268]
[1748749147862,14.78703268,154.28,154.23,14.78703268]
[1748749148643,14.78703268,154.28,154.24,6.48340248]
[1748749149254,14.78703268,154.28,154.24,7.02969754]
[1748749149560,14.78703268,154.27,154.24,0.54629506]
[1748749150753,14.78703268,154.25,154.24,0.54629506]
[1748749152771,21.27001485,154.25,154.24,0.54629506]
[1748749157548,21.55433799,154.25,154.24,0.54629506]
[1748749157751,54.99101953,154.25,154.24,0.54629506]
[1748749157960,6.48382286,154.23,154.16,1.646]
[1748749158261,14.78703268,154.19,154.16,1.646]
[1748749162261,6.48517994,154.2,154.16,1.646]
[1748749162456,21.27221262,154.2,154.16,1.646]
[1748749165265,14.78703268,154.17,154.15,0.53007833]
[1748749168458,6.48633999,154.18,154.15,0.53007833]
[1748749168655,14.78703268,154.2,154.15,15.31711101]
[1748749168976,14.78703268,154.2,154.15,21.80429134]
[1748749170576,14.78703268,154.18,154.15,7.01725866]
[1748749171454,14.78703268,154.17,154.15,0.53007833]
[1748749172980,14.78703268,154.16,154.15,0.53007833]
[1748749177094,14.78703268,154.17,154.15,0.53007833]
[1748749177769,6.4850843,154.2,154.15,0.53007833]
[1748749177960,14.78703268,154.17,154.15,0.53007833]
[1748749180367,14.78703268,154.18,154.15,0.53007833]
[1748749183467,14.78703268,154.19,154.15,7.01721048]
[1748749184893,25.18703268,154.21,154.16,14.78703268]
[1748749185104,14.78703268,154.21,154.16,14.78703268]
[1748749185882,21.27170966,154.21,154.16,14.78703268]
[1748749186487,14.78703268,154.21,154.16,14.78703268]
[1748749187280,14.78703268,154.21,154.17,6.48634624]
[1748749187777,14.78703268,154.21,154.16,21.27366201]
[1748749188105,14.78703268,154.17,154.15,0.53007833]
[1748749189502,21.27343349,154.17,154.15,0.53007833]
[1748749190787,14.78703268,154.17,154.15,0.53007833]
[1748749191275,21.273424,154.17,154.15,0.53007833]
[1748749191672,14.78703268,154.17,154.15,0.53007833]
[1748749191874,6.48466377,154.21,154.16,14.78703268]
[1748749192084,21.27169645,154.21,154.17,14.78703268]
[1748749192292,6.48466377,154.21,154.17,14.78703268]
[1748749192506,155.48440581,154.22,154.18,14.78703268]
[1748749192994,170.27143849,154.22,154.18,14.78703268]
[1748749193772,170.27143849,154.22,154.17,14.78703268]
[1748749194377,14.78703268,154.21,154.17,14.78703268]
[1748749195904,21.27171241,154.21,154.17,14.78703268]
[1748749196099,21.27171241,154.21,154.16,21.27349807]
[1748749197188,21.27171241,154.21,154.17,14.78703268]
[1748749199898,14.78703268,154.21,154.17,21.27327542]
[1748749200098,21.27130733,154.22,154.17,21.27327542]
[1748749200305,14.78703268,154.23,154.19,14.78703268]
[1748749201517,21.27086743,154.23,154.18,14.78703268]
[1748749202008,14.78703268,154.22,154.18,14.78703268]
[1748749202411,14.78703268,154.24,154.17,18.64964886]
[1748749202592,31.65030697,154.25,154.17,20.26004886]
[1748749202800,31.65030697,154.25,154.2,14.78703268]
[1748749203113,25.16703268,154.25,154.2,14.78703268]
[1748749203276,31.65005919,154.25,154.2,14.78703268]
[1748749203481,31.65005919,154.25,154.2,21.27201988]
[1748749203985,14.78703268,154.24,154.2,14.78703268]
[1748749204802,14.78703268,154.23,154.19,14.78703268]
[1748749205184,14.78703268,154.23,154.18,14.78703268]
[1748749205381,14.78703268,154.22,154.17,21.27329812]
[1748749206586,14.78703268,154.23,154.19,14.78703268]
[1748749206807,14.78703268,154.24,154.19,14.78703268]
[1748749208308,21.27057384,154.24,154.19,21.27239543]
[1748749208524,14.78703268,154.23,154.19,21.27239543]
[1748749210099,21.2708975,154.23,154.19,14.78703268]
[1748749210300,14.78703268,154.23,154.19,14.78703268]
[1748749211812,14.78703268,154.23,154.18,6.48582789]
[1748749212004,14.78703268,154.21,154.17,14.78703268]
[1748749212388,14.78703268,154.21,154.16,6.48676699]
[1748749212587,14.78703268,154.21,154.17,14.78703268]
[1748749213714,14.78703268,154.21,154.16,21.27379967]
[1748749214498,21.27171088,154.21,154.16,21.27379967]
[1748749215811,14.78703268,154.2,154.16,21.27379967]
[1748749216316,14.78703268,154.18,154.15,0.53007833]
[1748749217899,14.78703268,154.2,154.15,21.80405336]
[1748749219506,14.78703268,154.19,154.15,0.53007833]
[1748749221212,21.27259744,154.19,154.15,0.53007833]
[1748749222522,21.27259744,154.19,154.15,15.31711101]
[1748749222718,14.78703268,154.22,154.17,14.78703268]
[1748749222922,14.78703268,154.22,154.18,14.78703268]
[1748749223223,14.78703268,154.21,154.17,14.78703268]
[1748749223927,14.78703268,154.21,154.15,7.01725878]
[1748749223928,14.78703268,154.2,154.15,21.80429146]
[1748749224512,6.4848461,154.21,154.15,21.80429146]
[1748749224832,14.78703268,154.2,154.15,21.80429146]
[1748749226221,21.27213392,154.2,154.15,21.80429146]
[1748749227514,21.27213392,154.2,154.16,14.78703268]
[1748749227920,21.27213392,154.2,154.15,0.53007833]
[1748749227921,14.78703268,154.19,154.15,15.31711101]
[1748749228732,21.27213392,154.2,154.16,14.78703268]
[1748749230833,6.48340248,154.24,154.18,14.78703268]
[1748749231027,14.78703268,154.23,154.18,14.78703268]
[1748749232318,21.27120154,154.23,154.18,14.78703268]
[1748749234635,21.27120154,154.23,154.18,21.2729315]
[1748749235014,21.27057488,154.24,154.19,14.78703268]
[1748749240337,10.38,154.25,154.19,21.27244181]
[1748749240546,21.26933633,154.27,154.23,14.78703268]
[1748749240753,11.8876,154.3,154.24,14.78703268]
[1748749240912,26.67463268,154.3,154.25,14.78703268]
[1748749241118,14.78703268,154.29,154.25,14.78703268]
[1748749243141,6.48041169,154.32,154.27,14.78703268]
[1748749243312,14.78703268,154.31,154.27,14.78703268]
[1748749243830,14.78703268,154.31,154.26,14.78703268]
[1748749244021,6.48041169,154.32,154.26,21.26947913]
[1748749244211,14.78703268,154.31,154.26,21.26947913]
[1748749244632,14.78703268,154.31,154.26,14.78703268]
[1748749244819,6.48041169,154.32,154.26,14.78703268]
[1748749244820,14.78703268,154.3,154.26,14.78703268]
[1748749247647,14.78703268,154.3,154.25,14.78703268]
[1748749247940,14.78703268,154.29,154.25,14.78703268]
[1748749248141,14.78703268,154.29,154.23,16.8437834]
[1748749248142,14.78703268,154.29,154.24,14.78703268]
[1748749248538,14.78703268,154.29,154.25,14.78703268]
[1748749249552,21.26801643,154.3,154.25,21.26995831]
[1748749250926,21.26801643,154.3,154.25,14.78703268]
[1748749252049,6.48098375,154.3,154.25,14.78703268]
[1748749252255,26.65463268,154.34,154.29,14.78703268]
[1748749252844,6.47966532,154.33,154.29,14.78703268]
[1748749253244,21.266698,154.33,154.29,14.78703268]
[1748749257734,21.266698,154.33,154.27,14.78703268]
[1748749257735,14.78703268,154.31,154.27,14.78703268]
[1748749258947,14.78703268,154.3,154.25,14.78703268]
[1748749259961,21.26807968,154.3,154.25,14.78703268]
[1748749260433,21.26807968,154.3,154.26,14.78703268]
[1748749260619,46.30059323,154.31,154.27,14.78703268]
[1748749260823,61.08722058,154.32,154.27,14.78703268]
[1748749261851,14.78703268,154.31,154.27,14.78703268]
[1748749262167,14.78703268,154.3,154.26,14.78703268]
[1748749263748,14.78703268,154.31,154.26,21.26954142]
[1748749264271,21.26757681,154.31,154.26,21.26954142]
[1748749264770,21.26757681,154.31,154.26,14.78703268]
[1748749264975,21.26757681,154.31,154.25,6.4828576]
[1748749265144,14.78703268,154.3,154.26,14.78703268]
[1748749265955,21.26804488,154.3,154.26,14.78703268]
[1748749266355,21.26766396,154.31,154.26,21.26952909]
[1748749267189,14.78703268,154.31,154.26,21.26952909]
[1748749269079,14.78703268,154.31,154.27,21.26915198]
[1748749270266,21.26751973,154.31,154.27,14.78703268]
[1748749270583,21.26751973,154.31,154.26,14.78703268]
[1748749272476,14.78703268,154.3,154.26,14.78703268]
[1748749273356,6.48130144,154.29,154.25,14.78703268]
[1748749273664,21.26833412,154.29,154.25,14.78703268]
[1748749273967,14.78703268,154.28,154.24,0.43029189]